[Event "Turkish Youth Championships 2023"]
[Site "Samsun"]
[Date "2023.05.24"]
[Round "8.17"]
[White "Cicek, Bilal Emre"]
[Black "Demirkan, Mustafa"]
[Result "1-0"]
[WhiteElo "1600"]
[BlackElo "1207"]
[PlyCount "83"]
[EventDate "2023.05.19"]
[EventType "swiss"]
[EventCountry "TUR"]
[TimeControl "5400+30"]
[BlackClock "0:15:26"]

1. c4 {[%emt 0:01:00]} Nf6 {[%emt 0:01:00]} 2. g3 {[%emt 0:00:00]} g6 {[%emt 0:00:30]} 3. Bg2 {[%emt 0:00:00]} Bg7 {[%emt 0:00:30]} 4. Nc3 {[%emt 0:00:00]} c5 {[%emt 0:05:30]} 5. a3 {[%emt 0:01:00]} Nc6 {[%emt 0:00:30]} 6. Rb1 {[%emt 0:01:30]} e6 {[%emt 0:06:30]} 7. b4 {[%emt 0:02:30]} cxb4 {[%emt 0:01:30]} 8. axb4 {[%emt 0:00:30]} d5 {[%emt 0:00:30]} 9. cxd5 {[%emt 0:01:30]} exd5 {[%emt 0:00:30]} 10. b5 {[%emt 0:00:00]} Ne7 {[%emt 0:00:00]} 11. d4 {[%emt 0:02:00]} Bf5 {[%emt 0:00:00]} 12. Ra1 {[%emt 0:01:30]} O-O {[%emt 0:04:30]} 13. e3 {[%emt 0:00:30]} Qd7 {[%emt 0:05:30]} 14. Nge2 {[%emt 0:02:30]} Rfc8 {[%emt 0:00:30]} 15. O-O {[%emt 0:00:30]} Rc4 {[%emt 0:00:30]} 16. Qb3 {[%emt 0:02:30]} Be6 {[%emt 0:03:30]} 17. Bd2 {[%emt 0:03:30]} Ne4 {[%emt 0:01:30]} 18. Qb2 {[%emt 0:04:30]} f5 {[%emt 0:03:30]} 19. Ra3 {[%emt 0:02:30]} Bf8 {[%emt 0:01:30]} 20. Rfa1 {[%emt 0:04:30]} Nc8 {[%emt 0:00:30]} 21. R3a2 {[%emt 0:01:30]} b6 {[%emt 0:02:30]} 22. Nf4 {[%emt 0:02:30]} Bf7 {[%emt 0:01:30]} 23. Bf1 {[%emt 0:03:30]} Rc7 {[%emt 0:04:30]} 24. Ra4 {[%emt 0:05:30]} Ne7 {[%emt 0:09:30]} 25. Nd3 {[%emt 0:12:30]} Rac8 {[%emt 0:01:30]} 26. Ne5 {[%emt 0:00:00]} Qd6 {[%emt 0:02:30]} 27. Nxe4 {[%emt 0:00:00]} fxe4 {[%emt 0:00:30]} 28. Bb4 {[%emt 0:01:30]} Qf6 {[%emt 0:00:30]} 29. R1a2 {[%emt 0:06:30]} Ra8 {[%emt 0:03:30]} 30. Qa1 {[%emt 0:02:30]} Nc8 {[%emt 0:01:30]} 31. Bxf8 {[%emt 0:00:30]} Kxf8 {[%emt 0:00:30]} 32. Bh3 {[%emt 0:00:30]} Be6 {[%emt 0:00:30]} 33. Bxe6 {[%emt 0:00:30]} Qxe6 {[%emt 0:00:00]} 34. Ra6 {[%emt 0:00:30]} Qe7 {[%emt 0:05:00]} 35. Qb1 {[%emt 0:04:30]} Nd6 {[%emt 0:01:30]} 36. Rxb6 {[%emt 0:01:30]} Rac8 {[%emt 0:00:30]} 37. Rc6 {[%emt 0:00:30]} Rb8 {[%emt 0:09:30]} 38. Qc2 {[%emt 0:06:30]} Rbb7 {[%emt 0:01:30]} 39. Rb2 {[%emt 0:05:30]} Ke8 {[%emt 0:04:30]} 40. Qc5 {[%emt 0:00:30]} Nc4 {[%emt 0:04:45]} 41. Nxc4 {[%emt 0:00:30]} Qxc5 {[%emt 0:00:49]} 42. Rxc5 {[%emt 0:00:30]} 1-0

[Event "Turkish Youth Championships 2023"]
[Site "Samsun"]
[Date "2023.05.24"]
[Round "8.18"]
[White "Aydogdu, Cagatay"]
[Black "Tonoglu, Engin Erdem"]
[Result "1/2-1/2"]
[WhiteElo "1856"]
[BlackElo "1404"]
[PlyCount "74"]
[EventDate "2023.05.19"]
[EventType "swiss"]
[EventCountry "TUR"]
[TimeControl "5400+30"]
[WhiteClock "0:56:00"]

1. e4 {[%emt 0:01:00]} c5 {[%emt 0:01:00]} 2. Nf3 {[%emt 0:00:30]} Nc6 {[%emt 0:00:30]} 3. c4 {[%emt 0:00:30]} e5 {[%emt 0:00:30]} 4. Nc3 {[%emt 0:00:30]} g6 {[%emt 0:00:30]} 5. d3 {[%emt 0:00:30]} Bg7 {[%emt 0:00:00]} 6. Bg5 {[%emt 0:00:00]} f6 {[%emt 0:00:00]} 7. Be3 {[%emt 0:00:00]} d6 {[%emt 0:00:00]} 8. Qd2 {[%emt 0:00:00]} Be6 {[%emt 0:02:00]} 9. a3 {[%emt 0:00:00]} Nge7 {[%emt 0:05:30]} 10. Nd5 {[%emt 0:00:00]} Bxd5 {[%emt 0:01:30]} 11. cxd5 {[%emt 0:00:00]} Nd4 {[%emt 0:00:30]} 12. Nxd4 {[%emt 0:00:00]} cxd4 {[%emt 0:00:00]} 13. Bh6 {[%emt 0:00:00]} O-O {[%emt 0:00:00]} 14. Bxg7 {[%emt 0:02:30]} Kxg7 {[%emt 0:01:30]} 15. h4 {[%emt 0:00:30]} h6 {[%emt 0:18:30]} 16. f4 {[%emt 0:01:30]} f5 {[%emt 0:00:30]} 17. fxe5 {[%emt 0:02:30]} dxe5 {[%emt 0:01:30]} 18. Be2 {[%emt 0:01:30]} Rc8 {[%emt 0:02:30]} 19. O-O {[%emt 0:00:30]} Qd6 {[%emt 0:02:30]} 20. h5 {[%emt 0:10:30]} g5 {[%emt 0:01:30]} 21. Rf2 {[%emt 0:00:30]} Rc7 {[%emt 0:03:30]} 22. Raf1 {[%emt 0:01:30]} Rfc8 {[%emt 0:01:30]} 23. Bd1 {[%emt 0:02:30]} b6 {[%emt 0:06:30]} 24. Bb3 {[%emt 0:04:30]} a5 {[%emt 0:01:30]} 25. exf5 {[%emt 0:02:30]} Kf6 {[%emt 0:00:30]} 26. Re2 {[%emt 0:05:30]} Nxd5 {[%emt 0:00:00]} 27. Bxd5 {[%emt 0:01:30]} Qxd5 {[%emt 0:00:00]} 28. Rfe1 {[%emt 0:05:30]} Re7 {[%emt 0:00:30]} 29. Rc1 {[%emt 0:00:30]} Rec7 {[%emt 0:00:30]} 30. Ree1 {[%emt 0:02:30]} Rxc1 {[%emt 0:06:30]} 31. Rxc1 {[%emt 0:00:30]} Rxc1+ {[%emt 0:00:30]} 32. Qxc1 {[%emt 0:00:00]} Qc5 {[%emt 0:02:30]} 33. Qxc5 {[%emt 0:02:00]} bxc5 {[%emt 0:00:30]} 34. g4 {[%emt 0:00:30]} e4 {[%emt 0:00:00]} 35. dxe4 {[%emt 0:00:00]} c4 {[%emt 0:00:00]} 36. Kf2 {[%emt 0:00:00]} a4 {[%emt 0:00:00]} 37. Ke2 {[%emt 0:00:30]} d3+ {[%emt 0:00:00]} 1/2-1/2

[Event "Turkish Youth Championships 2023"]
[Site "Samsun"]
[Date "2023.05.24"]
[Round "8.19"]
[White "Yildiz, Elif Zeren"]
[Black "Anakok, Deniz"]
[Result "1-0"]
[WhiteElo "1722"]
[BlackElo "1448"]
[PlyCount "133"]
[EventDate "2023.05.19"]
[EventType "swiss"]
[EventCountry "TUR"]
[TimeControl "5400+30"]
[BlackClock "0:00:02"]

1. e4 {[%emt 0:01:00]} c5 {[%emt 0:01:00]} 2. Nf3 {[%emt 0:00:30]} Nc6 {[%emt 0:00:30]} 3. d4 {[%emt 0:00:00]} cxd4 {[%emt 0:00:30]} 4. Nxd4 {[%emt 0:00:00]} e6 {[%emt 0:00:30]} 5. Nc3 {[%emt 0:00:30]} Qc7 {[%emt 0:00:00]} 6. g3 {[%emt 0:02:30]} a6 {[%emt 0:00:00]} 7. a4 {[%emt 0:00:00]} Nf6 {[%emt 0:02:30]} 8. Bg2 {[%emt 0:01:00]} Bc5 {[%emt 0:01:30]} 9. Nxc6 {[%emt 0:02:30]} dxc6 {[%emt 0:00:30]} 10. O-O {[%emt 0:03:30]} e5 {[%emt 0:03:30]} 11. h3 {[%emt 0:01:30]} O-O {[%emt 0:02:30]} 12. Bg5 {[%emt 0:05:30]} Be7 {[%emt 0:05:30]} 13. g4 {[%emt 0:11:30]} Be6 {[%emt 0:08:30]} 14. Qf3 {[%emt 0:04:30]} b5 {[%emt 0:05:30]} 15. Ne2 {[%emt 0:05:30]} h6 {[%emt 0:10:30]} 16. Be3 {[%emt 0:02:30]} Bc4 {[%emt 0:03:30]} 17. Rfc1 {[%emt 0:09:30]} Bxe2 {[%emt 0:03:30]} 18. Qxe2 {[%emt 0:02:30]} Nh7 {[%emt 0:01:30]} 19. axb5 {[%emt 0:04:30]} axb5 {[%emt 0:01:30]} 20. c4 {[%emt 0:00:30]} b4 {[%emt 0:01:30]} 21. c5 {[%emt 0:01:30]} Qb7 {[%emt 0:20:30]} 22. Qc4 {[%emt 0:02:30]} Bg5 {[%emt 0:03:30]} 23. Qb3 {[%emt 0:05:30]} Bxe3 {[%emt 0:05:02]} 24. Qxe3 {[%emt 0:00:30]} Ng5 {[%emt 0:02:28]} 25. Qg3 {[%emt 0:02:30]} Qc7 {[%emt 0:01:13]} 26. Qb3 {[%emt 0:03:30]} Qb7 {[%emt 0:02:36]} 27. Qg3 {[%emt 0:03:30]} Rxa1 {[%emt 0:01:04]} 28. Rxa1 {[%emt 0:00:30]} Qb8 {[%emt 0:00:16]} 29. Qe3 {[%emt 0:01:30]} Ne6 {[%emt 0:01:16]} 30. Ra6 {[%emt 0:01:30]} Qb5 {[%emt 0:02:47]} 31. Bf1 {[%emt 0:00:30]} Qxc5 {[%emt 0:00:30]} 32. Qxc5 {[%emt 0:00:30]} Nxc5 {[%emt 0:00:30]} 33. Rxc6 {[%emt 0:00:00]} Nxe4 {[%emt 0:00:18]} 34. Rc4 {[%emt 0:00:00]} Nd2 {[%emt 0:00:27]} 35. Rxb4 {[%emt 0:00:00]} Nxf1 {[%emt 0:05:25]} 36. Kxf1 {[%emt 0:00:00]} Rd8 {[%emt 0:00:30]} 37. Ke2 {[%emt 0:00:30]} Kh7 {[%emt 0:00:30]} 38. Rb7 {[%emt 0:00:30]} f6 {[%emt 0:00:30]} 39. b4 {[%emt 0:00:30]} Kg6 {[%emt 0:00:30]} 40. b5 {[%emt 0:00:30]} Rd6 {[%emt 0:00:30]} 41. Ke3 {[%emt 0:00:30]} Kh7 {[%emt 0:00:30]} 42. Rc7 {[%emt 0:00:30]} Rb6 {[%emt 0:00:30]} 43. Rc5 {[%emt 0:00:30]} Kg6 {[%emt 0:00:30]} 44. h4 {[%emt 0:00:30]} Kf7 {[%emt 0:00:30]} 45. Kd3 {[%emt 0:00:30]} Ke6 {[%emt 0:00:30]} 46. Kc4 {[%emt 0:00:30]} Kd7 {[%emt 0:00:30]} 47. Rd5+ {[%emt 0:00:30]} Kc7 {[%emt 0:00:30]} 48. Rd1 {[%emt 0:00:30]} Re6 {[%emt 0:00:30]} 49. Ra1 {[%emt 0:00:30]} Kb7 {[%emt 0:04:35]} 50. Kd5 {[%emt 0:02:30]} Rb6 {[%emt 0:00:13]} 51. Ra5 {[%emt 0:00:30]} Kb8 {[%emt 0:00:26]} 52. h5 {[%emt 0:00:30]} Kb7 {[%emt 0:00:32]} 53. f3 {[%emt 0:00:30]} Kb8 {[%emt 0:00:00]} 54. Kc5 {[%emt 0:00:30]} Kb7 {[%emt 0:00:14]} 55. Ra4 {[%emt 0:02:30]} Re6 {[%emt 0:00:36]} 56. Re4 {[%emt 0:01:30]} Re8 {[%emt 0:01:53]} 57. Rc4 {[%emt 0:03:28]} Rd8 {[%emt 0:00:39]} 58. Kb4 {[%emt 0:00:18]} Rd3 {[%emt 0:00:21]} 59. Rc3 {[%emt 0:02:10]} Rd4+ {[%emt 0:00:43]} 60. Kc5 {[%emt 0:00:07]} Rd8 {[%emt 0:00:00]} 61. Rb3 {[%emt 0:00:36]} Rd4 {[%emt 0:00:37]} 62. Ra3 {[%emt 0:01:37]} Rd8 {[%emt 0:00:23]} 63. b6 {[%emt 0:00:22]} Rc8+ {[%emt 0:00:55]} 64. Kb5 {[%emt 0:00:22]} Rg8 {[%emt 0:00:38]} 65. Ra7+ {[%emt 0:00:30]} Kb8 {[%emt 0:00:00]} 66. Ka6 {[%emt 0:00:00]} Re8 {[%emt 0:01:10]} 67. Rxg7 {[%emt 0:00:00]} 1-0

[Event "Turkish Youth Championships 2023"]
[Site "Samsun"]
[Date "2023.05.24"]
[Round "8.20"]
[White "Binboga, Yaman"]
[Black "Simsek, Ayaz"]
[Result "1-0"]
[WhiteElo "1653"]
[BlackElo "1474"]
[PlyCount "91"]
[EventDate "2023.05.19"]
[EventType "swiss"]
[EventCountry "TUR"]
[TimeControl "5400+30"]
[BlackClock "0:34:00"]

1. e4 {[%emt 0:01:00]} e6 {[%emt 0:01:00]} 2. d4 {[%emt 0:00:30]} d5 {[%emt 0:00:30]} 3. Nc3 {[%emt 0:00:00]} Bb4 {[%emt 0:02:30]} 4. e5 {[%emt 0:00:00]} c5 {[%emt 0:00:30]} 5. Bd2 {[%emt 0:00:00]} a6 {[%emt 0:02:30]} 6. Qg4 {[%emt 0:07:00]} Kf8 {[%emt 0:04:30]} 7. dxc5 {[%emt 0:03:30]} Nc6 {[%emt 0:00:30]} 8. Nf3 {[%emt 0:00:00]} Bxc5 {[%emt 0:00:30]} 9. Bd3 {[%emt 0:01:00]} Nge7 {[%emt 0:02:30]} 10. O-O {[%emt 0:11:30]} Ng6 {[%emt 0:08:30]} 11. Rfe1 {[%emt 0:03:30]} b5 {[%emt 0:04:30]} 12. h4 {[%emt 0:00:30]} Qb6 {[%emt 0:00:30]} 13. Qg3 {[%emt 0:00:30]} Nb4 {[%emt 0:02:30]} 14. h5 {[%emt 0:01:30]} Ne7 {[%emt 0:01:30]} 15. h6 {[%emt 0:01:30]} g6 {[%emt 0:00:30]} 16. Nh4 {[%emt 0:01:30]} Bb7 {[%emt 0:00:30]} 17. Bg5 {[%emt 0:04:30]} Ke8 {[%emt 0:02:30]} 18. Bf6 {[%emt 0:01:30]} Rg8 {[%emt 0:00:00]} 19. a3 {[%emt 0:01:30]} Nxd3 {[%emt 0:00:00]} 20. cxd3 {[%emt 0:00:30]} Kd7 {[%emt 0:02:30]} 21. Ne2 {[%emt 0:05:30]} a5 {[%emt 0:01:30]} 22. Red1 {[%emt 0:22:30]} Nc6 {[%emt 0:13:30]} 23. Nf3 {[%emt 0:00:30]} b4 {[%emt 0:04:30]} 24. d4 {[%emt 0:02:30]} Be7 {[%emt 0:00:00]} 25. Qf4 {[%emt 0:01:30]} Ba6 {[%emt 0:04:00]} 26. Ng3 {[%emt 0:00:30]} Rge8 {[%emt 0:05:30]} 27. Ng5 {[%emt 0:01:30]} Bxf6 {[%emt 0:02:30]} 28. exf6 {[%emt 0:00:30]} Nd8 {[%emt 0:03:30]} 29. Nxh7 {[%emt 0:00:30]} Rh8 {[%emt 0:00:00]} 30. Ng5 {[%emt 0:00:30]} Qd6 {[%emt 0:01:00]} 31. Qxd6+ {[%emt 0:01:30]} Kxd6 {[%emt 0:00:00]} 32. axb4 {[%emt 0:00:30]} axb4 {[%emt 0:00:00]} 33. Ra4 {[%emt 0:00:30]} Rxh6 {[%emt 0:01:30]} 34. Rda1 {[%emt 0:00:30]} Rh4 {[%emt 0:00:30]} 35. Rxa6+ {[%emt 0:00:30]} Rxa6 {[%emt 0:00:30]} 36. Rxa6+ {[%emt 0:00:00]} Kc7 {[%emt 0:00:30]} 37. Ra7+ {[%emt 0:00:00]} Kb6 {[%emt 0:00:30]} 38. Rd7 {[%emt 0:00:30]} Nc6 {[%emt 0:00:00]} 39. Rxf7 {[%emt 0:00:30]} Nxd4 {[%emt 0:00:00]} 40. Re7 {[%emt 0:00:30]} Rf4 {[%emt 0:00:30]} 41. Nxe6 {[%emt 0:00:00]} Nxe6 {[%emt 0:00:30]} 42. Rxe6+ {[%emt 0:00:00]} Kc5 {[%emt 0:00:00]} 43. Ne2 {[%emt 0:00:30]} Rf5 {[%emt 0:00:00]} 44. g4 {[%emt 0:00:30]} Rg5 {[%emt 0:00:30]} 45. f7 {[%emt 0:00:00]} Rxg4+ {[%emt 0:00:00]} 46. Kf1 {[%emt 0:00:00]} 1-0

[Event "Turkish Youth Championships 2023"]
[Site "Samsun"]
[Date "2023.05.25"]
[Round "9.1"]
[White "Tarlabasi, Emirhan"]
[Black "Isik, Alparslan"]
[Result "1/2-1/2"]
[WhiteElo "2300"]
[BlackElo "2451"]
[PlyCount "54"]
[EventDate "2023.05.19"]
[EventType "swiss"]
[EventCountry "TUR"]
[TimeControl "5400+30"]
[WhiteClock "0:54:00"]

1. d4 Nf6 2. c4 e6 3. Nf3 b6 {[%emt 0:01:00]} 4. g3 {[%emt 0:06:30]} Ba6 {[%emt 0:00:30]} 5. b3 {[%emt 0:00:30]} Bb4+ {[%emt 0:00:30]} 6. Bd2 {[%emt 0:00:30]} Be7 {[%emt 0:00:00]} 7. Bg2 {[%emt 0:00:30]} c6 {[%emt 0:00:00]} 8. Bc3 {[%emt 0:00:00]} d5 {[%emt 0:00:00]} 9. Nbd2 {[%emt 0:02:00]} Nbd7 {[%emt 0:00:00]} 10. O-O {[%emt 0:01:30]} O-O {[%emt 0:00:30]} 11. Re1 {[%emt 0:04:30]} c5 {[%emt 0:00:30]} 12. cxd5 {[%emt 0:03:30]} Nxd5 {[%emt 0:00:30]} 13. Bb2 {[%emt 0:00:30]} Rc8 {[%emt 0:00:00]} 14. Rc1 {[%emt 0:05:30]} Bb7 {[%emt 0:08:00]} 15. a3 {[%emt 0:04:30]} cxd4 {[%emt 0:01:30]} 16. Nxd4 {[%emt 0:00:30]} Rxc1 {[%emt 0:00:30]} 17. Qxc1 {[%emt 0:00:30]} Qa8 {[%emt 0:01:30]} 18. Qb1 {[%emt 0:09:30]} N5f6 {[%emt 0:00:30]} 19. Bxb7 {[%emt 0:01:30]} Qxb7 {[%emt 0:00:00]} 20. Rc1 {[%emt 0:01:30]} Rc8 {[%emt 0:04:00]} 21. Rxc8+ {[%emt 0:01:30]} Qxc8 {[%emt 0:00:00]} 22. Qc1 {[%emt 0:00:30]} Qxc1+ {[%emt 0:00:00]} 23. Bxc1 {[%emt 0:04:30]} a6 {[%emt 0:00:30]} 24. Kg2 {[%emt 0:00:00]} Kf8 {[%emt 0:00:30]} 25. Kg1 {[%emt 0:00:00]} Kg8 {[%emt 0:00:30]} 26. Kg2 {[%emt 0:00:30]} Kf8 {[%emt 0:00:30]} 27. Kg1 {[%emt 0:00:00]} Kg8 {[%emt 0:00:00]} 1/2-1/2

[Event "Turkish Youth Championships 2023"]
[Site "Samsun"]
[Date "2023.05.25"]
[Round "9.2"]
[White "Akbas, Umut Ata"]
[Black "Angun, Batu"]
[Result "1-0"]
[WhiteElo "2417"]
[BlackElo "2205"]
[PlyCount "77"]
[EventDate "2023.05.19"]
[EventType "swiss"]
[EventCountry "TUR"]
[TimeControl "5400+30"]
[BlackClock "0:22:00"]

1. e4 c5 2. Nf3 d6 3. d4 cxd4 4. Nxd4 Nf6 5. Nc3 e5 {[%emt 0:01:00]} 6. Nb3 {[%emt 0:05:30]} Be6 {[%emt 0:01:30]} 7. f3 {[%emt 0:01:30]} d5 {[%emt 0:05:30]} 8. exd5 {[%emt 0:03:30]} Nxd5 {[%emt 0:00:30]} 9. Nxd5 {[%emt 0:00:30]} Bxd5 {[%emt 0:03:30]} 10. Be3 {[%emt 0:08:30]} Nc6 {[%emt 0:02:30]} 11. Qd2 {[%emt 0:03:30]} Bb4 {[%emt 0:05:30]} 12. c3 {[%emt 0:00:30]} Be7 {[%emt 0:00:30]} 13. O-O-O {[%emt 0:00:30]} Be6 {[%emt 0:00:30]} 14. Qxd8+ {[%emt 0:21:30]} Rxd8 {[%emt 0:00:30]} 15. Bb5 {[%emt 0:00:00]} O-O {[%emt 0:01:30]} 16. Nc5 {[%emt 0:05:00]} Bc8 {[%emt 0:00:30]} 17. b4 {[%emt 0:03:30]} h6 {[%emt 0:06:30]} 18. a4 {[%emt 0:03:30]} Bg5 {[%emt 0:22:30]} 19. Bxg5 {[%emt 0:02:30]} hxg5 {[%emt 0:00:30]} 20. a5 {[%emt 0:04:30]} a6 {[%emt 0:04:30]} 21. Bxc6 {[%emt 0:12:30]} bxc6 {[%emt 0:00:30]} 22. c4 {[%emt 0:00:30]} g4 {[%emt 0:05:30]} 23. Rxd8 {[%emt 0:08:13]} Rxd8 {[%emt 0:00:30]} 24. Rd1 {[%emt 0:00:00]} Rxd1+ {[%emt 0:00:00]} 25. Kxd1 {[%emt 0:00:08]} gxf3 {[%emt 0:00:00]} 26. gxf3 {[%emt 0:00:00]} Kh7 {[%emt 0:00:00]} 27. Kc2 {[%emt 0:02:59]} Kg6 {[%emt 0:00:00]} 28. Kb3 {[%emt 0:02:08]} Kf5 {[%emt 0:07:30]} 29. Ka4 {[%emt 0:04:29]} Kf4 {[%emt 0:01:30]} 30. b5 {[%emt 0:00:38]} cxb5+ {[%emt 0:01:30]} 31. cxb5 {[%emt 0:00:30]} axb5+ {[%emt 0:00:30]} 32. Kxb5 {[%emt 0:00:00]} Kxf3 {[%emt 0:00:30]} 33. Kb6 {[%emt 0:00:00]} e4 {[%emt 0:00:30]} 34. Kc7 {[%emt 0:00:03]} Bf5 {[%emt 0:04:30]} 35. a6 {[%emt 0:01:11]} e3 {[%emt 0:00:30]} 36. a7 {[%emt 0:00:04]} Be4 {[%emt 0:01:30]} 37. Nxe4 {[%emt 0:00:44]} e2 {[%emt 0:00:30]} 38. Nd2+ {[%emt 0:01:46]} Kf2 {[%emt 0:04:30]} 39. Nf3 {[%emt 0:00:05]} 1-0

[Event "Turkish Youth Championships 2023"]
[Site "Samsun"]
[Date "2023.05.25"]
[Round "9.4"]
[White "Engin, Onur Cinar"]
[Black "Temizer, Umut"]
[Result "0-1"]
[WhiteElo "1922"]
[BlackElo "1973"]
[PlyCount "64"]
[EventDate "2023.05.19"]
[EventType "swiss"]
[EventCountry "TUR"]
[TimeControl "5400+30"]
[WhiteClock "0:02:48"]

1. e4 c5 2. c3 d5 3. exd5 Qxd5 4. d4 Nf6 5. Nf3 Nc6 6. Be2 cxd4 7. cxd4 Bf5 {[%emt 0:01:00]} 8. Nc3 {[%emt 0:04:30]} Qa5 {[%emt 0:00:30]} 9. O-O {[%emt 0:03:30]} e6 {[%emt 0:00:30]} 10. Ne5 {[%emt 0:07:30]} Be7 {[%emt 0:06:30]} 11. Bf3 {[%emt 0:14:30]} Rc8 {[%emt 0:02:30]} 12. Nxc6 {[%emt 0:18:30]} bxc6 {[%emt 0:00:30]} 13. Re1 {[%emt 0:00:30]} O-O {[%emt 0:02:30]} 14. Bf4 {[%emt 0:06:30]} Rfd8 {[%emt 0:04:30]} 15. Qb3 {[%emt 0:02:30]} Rxd4 {[%emt 0:06:30]} 16. Qb7 {[%emt 0:01:30]} Qd8 {[%emt 0:00:30]} 17. Rad1 {[%emt 0:05:30]} Qd7 {[%emt 0:16:30]} 18. Qxc8+ {[%emt 0:04:30]} Qxc8 {[%emt 0:01:30]} 19. Rxd4 {[%emt 0:00:00]} h6 {[%emt 0:02:30]} 20. h3 {[%emt 0:03:00]} Qb7 {[%emt 0:01:30]} 21. Na4 {[%emt 0:04:30]} Nd5 {[%emt 0:01:30]} 22. Be5 {[%emt 0:03:30]} Qb5 {[%emt 0:04:30]} 23. b3 {[%emt 0:07:21]} Nb4 {[%emt 0:10:30]} 24. Nc3 {[%emt 0:02:53]} Qa5 {[%emt 0:00:30]} 25. Re2 {[%emt 0:06:46]} Bc5 {[%emt 0:08:30]} 26. Rh4 {[%emt 0:02:04]} Nd3 {[%emt 0:05:30]} 27. Ra4 {[%emt 0:00:11]} Bxf2+ {[%emt 0:00:30]} 28. Kf1 {[%emt 0:00:44]} Qb6 {[%emt 0:00:00]} 29. Rc4 {[%emt 0:01:10]} Nxe5 {[%emt 0:01:00]} 30. Rxe5 {[%emt 0:00:33]} Bg3 {[%emt 0:02:30]} 31. Rcc5 {[%emt 0:01:24]} Bxe5 {[%emt 0:00:30]} 32. Rxe5 {[%emt 0:00:00]} Qd4 {[%emt 0:00:00]} 0-1

[Event "Turkish Youth Championships 2023"]
[Site "Samsun"]
[Date "2023.05.25"]
[Round "9.5"]
[White "Isilak, Enes"]
[Black "Turker, Esat Tuna"]
[Result "1-0"]
[WhiteElo "2181"]
[BlackElo "1713"]
[PlyCount "177"]
[EventDate "2023.05.19"]
[EventType "swiss"]
[EventCountry "TUR"]
[TimeControl "5400+30"]
[BlackClock "0:02:25"]

1. d4 e6 2. c4 b6 {[%emt 0:03:30]} 3. Nf3 {[%emt 0:04:00]} f5 {[%emt 0:03:30]} 4. g3 {[%emt 0:07:30]} Bb7 {[%emt 0:01:30]} 5. Bg2 {[%emt 0:00:30]} Bb4+ {[%emt 0:02:30]} 6. Bd2 {[%emt 0:05:30]} Bxd2+ {[%emt 0:13:30]} 7. Qxd2 {[%emt 0:00:30]} Nf6 {[%emt 0:00:30]} 8. O-O {[%emt 0:00:30]} Qe7 {[%emt 0:00:30]} 9. Nc3 {[%emt 0:00:30]} Ne4 {[%emt 0:00:30]} 10. Qe3 {[%emt 0:00:30]} Nxc3 {[%emt 0:00:30]} 11. Qxc3 {[%emt 0:00:30]} d6 {[%emt 0:08:30]} 12. d5 {[%emt 0:16:30]} e5 {[%emt 0:02:30]} 13. Nh4 {[%emt 0:00:30]} O-O {[%emt 0:05:30]} 14. f4 {[%emt 0:01:30]} e4 {[%emt 0:01:30]} 15. Bh3 {[%emt 0:01:30]} g6 {[%emt 0:01:30]} 16. Ng2 {[%emt 0:00:00]} h5 {[%emt 0:10:30]} 17. Ne3 {[%emt 0:01:00]} Nd7 {[%emt 0:10:30]} 18. Rfd1 {[%emt 0:02:30]} Rfd8 {[%emt 0:07:30]} 19. Rd2 {[%emt 0:18:30]} Rac8 {[%emt 0:02:30]} 20. Rad1 {[%emt 0:02:30]} Nf6 {[%emt 0:02:30]} 21. Qa3 {[%emt 0:02:30]} a5 {[%emt 0:03:07]} 22. Qb3 {[%emt 0:00:30]} Nd7 {[%emt 0:02:21]} 23. Bg2 {[%emt 0:07:30]} Qf6 {[%emt 0:01:55]} 24. Qc2 {[%emt 0:02:30]} Ra8 {[%emt 0:00:57]} 25. b3 {[%emt 0:00:30]} Ba6 {[%emt 0:01:29]} 26. Rc1 {[%emt 0:05:30]} Ra7 {[%emt 0:01:03]} 27. Qc3 {[%emt 0:03:07]} Qxc3 {[%emt 0:01:27]} 28. Rxc3 {[%emt 0:00:02]} Nc5 {[%emt 0:00:34]} 29. h3 {[%emt 0:00:43]} Bc8 {[%emt 0:01:36]} 30. Nc2 {[%emt 0:01:09]} Bd7 {[%emt 0:00:30]} 31. Nd4 {[%emt 0:00:00]} Raa8 {[%emt 0:00:31]} 32. e3 {[%emt 0:00:46]} Kf7 {[%emt 0:02:04]} 33. Bf1 {[%emt 0:00:20]} Ke7 {[%emt 0:02:54]} 34. Be2 {[%emt 0:03:37]} Rh8 {[%emt 0:00:51]} 35. a3 {[%emt 0:02:36]} Rhc8 {[%emt 0:02:39]} 36. Kg2 {[%emt 0:04:25]} c6 {[%emt 0:01:44]} 37. dxc6 {[%emt 0:02:17]} Bxc6 {[%emt 0:00:01]} 38. g4 {[%emt 0:00:17]} hxg4 {[%emt 0:00:33]} 39. hxg4 {[%emt 0:00:04]} Bd7 {[%emt 0:00:36]} 40. g5 {[%emt 0:01:46]} Nb7 {[%emt 0:00:53]} 41. Rc1 {[%emt 0:01:18]} Rh8 {[%emt 0:01:13]} 42. Rdd1 {[%emt 0:00:32]} Rh4 {[%emt 0:00:29]} 43. Rh1 {[%emt 0:00:01]} Rhh8 {[%emt 0:00:59]} 44. b4 {[%emt 0:00:26]} Be6 {[%emt 0:00:47]} 45. Rb1 {[%emt 0:01:27]} Rxh1 {[%emt 0:01:23]} 46. Rxh1 {[%emt 0:00:30]} Bf7 {[%emt 0:00:00]} 47. Rh7 {[%emt 0:01:29]} Rc8 {[%emt 0:00:18]} 48. Nxf5+ {[%emt 0:00:53]} gxf5 {[%emt 0:00:30]} 49. g6 {[%emt 0:00:00]} Rf8 {[%emt 0:00:50]} 50. Bh5 {[%emt 0:00:23]} axb4 {[%emt 0:01:02]} 51. axb4 {[%emt 0:00:30]} Nd8 {[%emt 0:00:30]} 52. gxf7 {[%emt 0:00:30]} Nxf7 {[%emt 0:00:00]} 53. Kf2 {[%emt 0:00:25]} Ke6 {[%emt 0:00:00]} 54. Ke2 {[%emt 0:01:08]} Nd8 {[%emt 0:00:11]} 55. Kd2 {[%emt 0:02:23]} Nc6 {[%emt 0:00:01]} 56. Kc3 {[%emt 0:00:43]} Ne7 {[%emt 0:01:05]} 57. Bd1 {[%emt 0:00:24]} Rc8 {[%emt 0:00:45]} 58. Rh6+ {[%emt 0:00:30]} Kd7 {[%emt 0:00:30]} 59. Ba4+ {[%emt 0:00:00]} Kc7 {[%emt 0:00:13]} 60. Rh7 {[%emt 0:00:12]} Kd8 {[%emt 0:00:30]} 61. Kd4 {[%emt 0:00:00]} Rb8 {[%emt 0:00:18]} 62. Rh6 {[%emt 0:00:18]} Kc7 {[%emt 0:00:36]} 63. Re6 {[%emt 0:00:06]} Nc8 {[%emt 0:01:05]} 64. Rf6 {[%emt 0:00:57]} Ne7 {[%emt 0:00:42]} 65. Rf7 {[%emt 0:00:30]} Kd8 {[%emt 0:00:30]} 66. Bb5 {[%emt 0:00:00]} Rc8 {[%emt 0:00:00]} 67. Rf6 {[%emt 0:00:00]} Kc7 {[%emt 0:00:39]} 68. Re6 {[%emt 0:00:00]} Ng8 {[%emt 0:00:22]} 69. Kd5 {[%emt 0:00:04]} Rf8 {[%emt 0:01:11]} 70. Kd4 {[%emt 0:00:58]} Rf7 {[%emt 0:00:46]} 71. Re8 {[%emt 0:02:19]} Ne7 {[%emt 0:00:09]} 72. Ra8 {[%emt 0:00:26]} Nc8 {[%emt 0:00:27]} 73. Ba6 {[%emt 0:00:36]} Ne7 {[%emt 0:00:35]} 74. b5 {[%emt 0:00:24]} Rg7 {[%emt 0:00:45]} 75. Ra7+ {[%emt 0:00:15]} Kd8 {[%emt 0:00:55]} 76. Rb7 {[%emt 0:00:07]} Rg1 {[%emt 0:00:14]} 77. Rxb6 {[%emt 0:00:12]} Rd1+ {[%emt 0:00:50]} 78. Kc3 {[%emt 0:00:30]} Rd3+ {[%emt 0:00:00]} 79. Kc2 {[%emt 0:00:18]} Kd7 {[%emt 0:00:34]} 80. Rb7+ {[%emt 0:00:11]} Ke6 {[%emt 0:00:00]} 81. b6 {[%emt 0:00:35]} Rxe3 {[%emt 0:01:11]} 82. Rxe7+ {[%emt 0:00:46]} Kxe7 {[%emt 0:00:30]} 83. b7 {[%emt 0:00:30]} Re2+ {[%emt 0:00:00]} 84. Kc3 {[%emt 0:00:00]} Re3+ {[%emt 0:00:14]} 85. Kb4 {[%emt 0:00:00]} Re1 {[%emt 0:00:09]} 86. Bb5 {[%emt 0:00:00]} e3 {[%emt 0:01:23]} 87. b8=Q {[%emt 0:00:00]} Rb1+ {[%emt 0:00:30]} 88. Kc3 {[%emt 0:00:00]} e2 {[%emt 0:00:00]} 89. Qe8+ {[%emt 0:00:00]} 1-0